bitfinex-derivatives/quotes_ETHF0:USTF0_20251007
["timestamp","ask_amount","ask_price","bid_price","bid_amount"]
[1759799740179,0.3281,4691.6,4691.5,0.7508]
[1759799740379,0.00174953,4691.7,4691.5,0.7508]
[1759799740380,0.00174953,4691.7,4691.6,1.13427]
[1759799740677,0.32984953,4691.7,4691.6,1.13427]
[1759799740875,0.00174953,4691.7,4691.6,4.34207]
[1759799742784,0.75014953,4691.7,4691.6,4.34207]
[1759799743279,0.53554953,4691.7,4691.6,4.55507]
[1759799745681,0.75014953,4691.7,4691.6,0.6407]
[1759799746179,0.75014953,4691.7,4691.6,0.213]
[1759799746576,0.75014953,4691.7,4691.6,0.4305]
[1759799747180,0.75014953,4691.7,4691.6,0.9638]
[1759799748082,0.75014953,4691.7,4691.6,0.213]
[1759799748476,0.75014953,4691.7,4691.6,0.4305]
[1759799748981,0.75014953,4691.7,4691.6,0.6368]
[1759799749883,0.00174953,4691.7,4691.6,0.9468]
[1759799750084,0.00174953,4691.7,4691.6,4.1546]
[1759799754180,0.00174953,4691.7,4691.6,9.1546]
[1759799754787,0.00174953,4691.7,4691.6,49.9546]
[1759799757576,0.00174953,4691.7,4691.6,44.9546]
[1759799758483,0.2047,4692.7,4692.6,1.10098]
[1759799758675,0.2047,4692.7,4692.6,1.31398]
[1759799758884,0.48132267,4692.7,4692.6,1.31398]
[1759799759189,1.22885,4693.0,4692.9,0.7176]
[1759799759486,1.32851899,4693.0,4692.9,41.7306]
[1759799759781,0.48301899,4693.0,4692.9,41.7306]
[1759799759986,0.00173925,4693.0,4692.9,41.7306]
[1759799763678,0.31513925,4693.0,4692.9,41.5176]
[1759799763883,0.7235,4692.8,4692.7,3.4091]
[1759799764088,0.7235,4692.8,4692.7,0.4143]
[1759799764386,5.7235,4692.8,4692.7,0.213]
[1759799767286,0.8455,4692.0,4691.8,3.2078]
[1759799767486,1.10694,4691.9,4691.8,3.2078]
[1759799767686,1.10694,4691.9,4691.8,3.4208]
[1759799767882,0.7235,4691.9,4691.8,3.6221]
[1759799768087,0.7235,4691.9,4691.8,0.4143]
[1759799769685,0.7235,4691.9,4691.8,0.6206]
[1759799769986,0.7235,4691.9,4691.8,4.1384]
[1759799770188,0.4101,4691.4,4691.3,3.4091]
[1759799770398,1.10698,4691.4,4691.3,3.4208]
[1759799770690,1.10698,4691.4,4691.3,0.213]
[1759799772798,0.7235,4691.4,4691.3,0.213]
[1759799774789,5.7235,4691.4,4690.2,3.5178]
[1759799775094,0.79368,4690.2,4690.1,0.213]
[1759799775287,1.10708,4690.2,4690.1,0.213]
[1759799776596,1.10708,4690.2,4690.1,0.4143]
[1759799780397,1.10708,4690.2,4690.1,0.2013]
[1759799780595,1.10708,4690.2,4690.1,0.4143]
[1759799780798,1.10708,4690.2,4690.1,0.213]
[1759799782000,1.10708,4690.2,4690.0,0.00271545]
[1759799782194,1.10708,4690.2,4690.0,0.21571545]
[1759799784802,1.10708,4690.2,4690.0,0.00271545]
[1759799785008,1.10708,4690.2,4690.0,0.21571545]
[1759799786308,1.10708,4690.2,4690.0,0.00271545]
[1759799789308,0.1259,4689.5,4689.2,3.2078]
[1759799789607,0.1259,4689.5,4688.1,1.52285388]
[1759799789608,0.4367,4688.2,4688.1,3.6284]
[1759799789915,0.7474,4688.2,4688.1,3.8414]
[1759799790417,0.74901864,4688.2,4688.1,3.84372118]
[1759799790609,0.74901864,4688.2,4688.1,3.42062118]
[1759799790811,0.74901864,4688.2,4688.1,0.00232118]
[1759799794316,5.74901864,4688.2,4688.1,0.00232118]
[1759799797525,5.74901864,4688.2,4688.1,0.41322118]
[1759799797526,0.74901864,4688.2,4688.1,0.41322118]
[1759799799226,0.74901864,4688.2,4688.1,0.21242118]
[1759799799822,0.74901864,4688.2,4688.1,0.00232118]
[1759799800821,0.74901864,4688.2,4688.1,0.41322118]
[1759799801018,0.74901864,4688.2,4688.1,0.74112118]
[1759799801218,0.74901864,4688.2,4688.1,0.00232118]
[1759799806136,0.8867,4688.0,4687.9,0.02133174]
[1759799806333,1.1007,4688.0,4687.9,0.02133174]
[1759799807236,1.1007,4688.0,4687.9,0.02305337]
[1759799808533,1.58152512,4688.0,4687.9,0.02305337]
[1759799809037,1.1007,4688.0,4687.9,0.02305337]
[1759799810332,1.58164716,4688.0,4687.9,0.02305337]
[1759799812541,0.8708,4688.0,4687.9,0.23225337]
[1759799813142,0.8708,4688.0,4687.9,0.02305337]
[1759799813339,1.35211743,4688.0,4687.9,0.02305337]
[1759799816737,0.80941743,4688.0,4687.9,0.75925337]
[1759799816939,0.51861864,4688.2,4688.1,1.11995]
[1759799817148,1.0005834,4688.2,4688.1,0.7362]
[1759799817344,0.4835834,4688.2,4688.1,5.7362]
[1759799817549,0.00161864,4688.2,4688.1,5.7362]
[1759799818649,0.00161864,4688.2,4688.1,8.944]
[1759799819340,0.00161864,4688.2,4688.1,3.944]
[1759799819643,0.72401864,4688.2,4688.1,0.4214]
[1759799819837,1.20713943,4688.2,4688.1,0.4214]
[1759799820038,0.72401864,4688.2,4688.1,0.4214]
[1759799820239,0.72401864,4688.2,4687.9,0.62082337]
[1759799820240,0.5427,4688.0,4687.9,0.23225337]
[1759799820442,0.8425,4688.0,4687.9,0.02305337]
[1759799820648,1.32571209,4688.0,4687.9,0.02305337]
[1759799822751,0.1201,4687.0,4686.9,0.214]
[1759799822946,1.10628,4686.6,4686.5,0.2092]
[1759799823248,1.10628,4686.6,4686.2,0.2092]
[1759799823249,1.1063,4686.3,4686.2,0.2092]
[1759799823442,0.38392,4686.1,4686.0,3.2078]
[1759799823639,0.4226,4686.3,4686.1,0.2092]
[1759799823640,0.7224,4686.2,4686.1,0.2092]
[1759799823846,0.7224,4686.2,4686.1,0.21166649]
[1759799824041,0.7224,4686.2,4686.1,0.00246649]
[1759799824646,1.20540364,4686.2,4686.1,0.00246649]
[1759799825943,0.7224,4685.7,4685.6,0.02683207]
[1759799826249,1.10635,4685.7,4685.6,0.02683207]
[1759799826754,1.58875144,4685.7,4685.6,0.00910094]
[1759799826955,0.5427,4685.0,4684.7,0.214]
[1759799827156,1.10642,4684.8,4684.7,0.214]
[1759799827560,1.10642,4684.8,4684.7,0.4232]
[1759799827755,0.7224,4684.8,4684.7,0.9502]
[1759799827955,0.72483175,4684.8,4684.7,0.95184399]
[1759799828256,0.72483175,4684.8,4684.7,0.63704399]
[1759799830551,0.51943175,4684.8,4684.7,0.95184399]
[1759799830756,0.00243175,4684.8,4684.7,0.95184399]
[1759799830953,0.51943175,4684.8,4684.7,0.95184399]
[1759799832856,0.72483175,4684.8,4684.7,0.63704399]
[1759799833049,0.72483175,4684.8,4684.7,0.21084399]
[1759799833253,0.72483175,4684.8,4684.7,0.00164399]
[1759799833956,0.72483175,4684.8,4684.7,0.21084399]
[1759799839357,0.72483175,4684.8,4684.7,0.00164399]
[1759799843560,0.6956,4683.9,4683.6,0.38412]
[1759799843764,0.7516,4683.7,4683.6,0.216]
[1759799843963,0.7516,4683.7,4683.6,0.6368]
[1759799844173,0.882,4683.5,4683.4,3.4238]
[1759799844367,0.882,4683.5,4683.4,4.1715]
[1759799844563,0.6045,4683.9,4683.8,0.4228]
[1759799844769,0.6045,4683.9,4683.8,0.7497]
[1759799844965,0.8242,4683.9,4683.8,0.7497]
[1759799845171,1.1357,4683.9,4683.8,0.7497]
[1759799847078,1.1357,4683.9,4683.8,0.4228]
[1759799851874,0.7516,4683.9,4683.8,0.4228]
[1759799852074,0.7516,4683.9,4683.8,0.216]
[1759799854576,0.60451,4683.7,4683.6,0.216]
[1759799854771,1.13571,4683.7,4683.6,0.60012]
[1759799855073,0.7516,4683.7,4683.6,0.60012]
[1759799855682,1.13571,4683.7,4683.6,0.60012]
[1759799855881,1.13571,4683.7,4683.6,0.81412]
[1759799856181,0.7516,4683.7,4683.6,0.81412]
[1759799856480,1.13571,4683.7,4683.6,0.81412]
[1759799856875,0.7516,4683.7,4683.6,0.81412]
[1759799857082,0.7516,4683.7,4683.6,1.34722]
[1759799859685,0.5319,4683.7,4683.6,1.34722]
[1759799860488,0.7514,4683.7,4683.6,1.34722]
[1759799861189,1.13551,4683.7,4683.6,1.34722]
[1759799862784,1.13551,4683.7,4683.6,1.02282]
[1759799863180,1.13551,4683.7,4683.4,0.00160836]
[1759799863181,0.93913,4683.5,4683.4,0.59893836]
[1759799863491,1.25923,4683.5,4683.4,0.21560836]
[1759799863989,1.25923,4683.5,4683.4,0.38574836]
[1759799864192,0.8751,4683.5,4683.4,1.34604836]
[1759799864394,0.8751,4683.5,4683.4,1.02164836]
[1759799865288,0.5277,4683.5,4683.4,1.34604836]
[1759799866188,0.8751,4683.5,4683.4,1.02164836]
[1759799866991,0.8751,4683.5,4683.4,1.34604836]
[1759799868494,0.548,4684.0,4683.9,0.5988]
[1759799868692,1.33479433,4684.0,4683.9,1.1249]
[1759799868989,0.80171,4683.8,4683.7,0.81281]
[1759799869183,1.58865596,4683.8,4683.7,0.214]
[1759799869385,1.58865596,4683.8,4683.4,0.38574836]
[1759799869386,0.8524,4683.5,4683.4,0.38574836]
[1759799869586,0.8524,4683.5,4683.4,0.59974836]
[1759799869884,0.8524,4683.5,4683.4,1.02594836]
[1759799870086,0.8524,4683.5,4683.4,1.34054836]
[1759799870691,0.7205,4683.9,4683.8,1.1249]
[1759799870890,1.20457001,4683.9,4683.8,1.3389]
[1759799871392,1.58867001,4683.9,4683.8,1.3389]
[1759799871792,1.20457001,4683.9,4683.8,1.3389]
[1759799872996,1.58867001,4683.9,4683.8,1.3389]
[1759799873187,1.20457001,4683.9,4683.8,1.3389]
[1759799873491,1.58867001,4683.9,4683.8,1.3389]
[1759799874084,1.58867001,4683.9,4683.8,0.9548]
[1759799875193,1.20457001,4683.9,4683.8,1.33891]
[1759799875895,1.58867001,4683.9,4683.8,1.33891]
[1759799876395,0.7205,4683.9,4683.8,1.33891]
[1759799876696,0.5114,4684.4,4684.3,0.7408]
[1759799876994,0.7205,4684.4,4684.3,0.7408]
[1759799877192,0.7205,4684.4,4684.3,0.4262]
[1759799877398,0.7205,4684.4,4684.3,0.2147]
[1759799878789,1.10457,4684.3,4684.2,0.214]
[1759799879391,0.1304,4684.5,4683.8,40.8]
[1759799879392,0.5114,4683.9,4683.8,40.8]
[1759799879588,0.8524,4683.5,4683.3,3.2078]
[1759799879790,0.8524,4683.5,4683.4,0.21560836]
[1759799879993,1.33656551,4683.5,4683.4,0.21560836]
[1759799880197,1.33656551,4683.5,4683.4,0.00160836]
[1759799881796,1.50271683,4683.5,4683.4,0.00160836]
[1759799882192,1.33656551,4683.5,4683.4,0.00160836]
[1759799883598,6.33656551,4683.5,4683.4,0.00160836]
[1759799888402,6.33656551,4683.5,4683.4,0.42780836]
[1759799888403,1.33656551,4683.5,4683.4,0.42780836]
[1759799888701,0.2085,4683.8,4683.7,0.2147]
[1759799888909,0.7205,4683.8,4683.7,1.12491]
[1759799889100,0.7205,4683.8,4683.7,0.7408]
[1759799890106,0.5114,4684.3,4684.2,0.5261]
[1759799890306,0.5114,4684.3,4684.2,0.7408]
[1759799890703,0.5114,4684.3,4684.2,0.4262]
[1759799890704,0.7205,4684.3,4684.2,0.4262]
[1759799891201,3.2078,4684.6,4684.2,5.5261]
[1759799891406,0.3029,4684.5,4684.4,1.12485]
[1759799891704,0.3029,4684.5,4684.1,0.214]
[1759799891705,1.23645,4684.5,4684.1,0.214]
[1759799892105,0.8524,4684.5,4684.4,0.4262]
[1759799893099,0.1201,4685.0,4684.6,1.12484]
[1759799893100,0.3029,4684.7,4684.6,1.12484]
[1759799893308,0.3029,4685.1,4684.7,0.5293]
[1759799893511,0.3029,4685.1,4684.7,0.7408]
[1759799894010,3.2078,4685.2,4684.7,5.7408]
[1759799894513,0.3029,4685.5,4684.7,8.9486]
[1759799896104,0.68687,4685.5,4684.7,49.7486]
[1759799897313,0.3029,4685.5,4684.7,49.7486]
[1759799897511,0.3029,4685.8,4685.5,0.3146]
[1759799897713,0.51591,4685.0,4684.8,3.4225]
[1759799897914,0.7205,4684.9,4684.8,3.4225]
[1759799898114,0.3029,4684.9,4684.8,4.1626]
[1759799898414,0.3045347,4684.9,4684.8,4.1626]
[1759799898918,0.0016347,4684.9,4684.8,4.1626]
[1759799899114,0.0016347,4684.9,4684.8,9.1626]
[1759799901113,0.1319,4686.0,4685.9,0.38393]
[1759799901318,3.2078,4686.2,4686.1,0.7187]
[1759799901319,3.6313,4686.2,4686.1,0.7187]
[1759799901619,0.4235,4685.9,4685.8,0.59794]
[1759799901808,0.7286,4685.9,4685.8,0.79954]
[1759799902110,0.73036466,4685.9,4685.8,1.31664]
[1759799902710,0.73036466,4685.9,4685.8,0.214]
[1759799903813,0.73036466,4685.9,4685.1,0.3092]
[1759799903814,0.5102,4685.3,4685.2,0.79349]
[1759799904019,0.5102,4685.3,4685.2,1.31669]
[1759799904519,0.73036466,4685.9,4685.8,0.2016]
[1759799905017,0.73036466,4685.9,4685.8,0.4095]
[1759799905610,0.51196466,4685.9,4685.8,0.7187]
[1759799905808,0.00176466,4685.9,4685.8,0.7187]
[1759799906008,0.00176466,4685.9,4685.8,0.4095]
[1759799906009,0.73036466,4685.9,4685.8,0.4095]
[1759799906213,0.80744,4685.8,4685.7,3.6234]
[1759799906414,0.7286,4685.8,4685.7,3.6234]
[1759799906819,0.7286,4685.8,4685.7,0.4156]
[1759799908420,0.7286,4685.8,4685.7,0.9327]
[1759799908815,0.7286,4685.8,4685.7,0.6235]
[1759799909418,0.7286,4685.8,4685.7,3.8313]
[1759799910327,0.7286,4685.8,4685.7,4.1405]
[1759799912322,0.00176466,4685.9,4685.8,0.38394]
[1759799912526,0.00176466,4685.9,4685.8,1.10264]
[1759799913022,0.51196466,4685.9,4685.8,0.7187]
[1759799913428,0.00176466,4685.9,4685.8,0.7187]
[1759799914726,0.30686466,4685.9,4685.8,0.7187]
[1759799915224,0.73036466,4685.9,4685.8,0.4095]
[1759799915425,0.73036466,4685.9,4685.8,0.2016]
[1759799917732,0.73036466,4685.9,4685.7,3.80574]
[1759799917733,0.7581,4685.8,4685.7,0.81084]
[1759799919127,0.3271,4685.7,4685.2,3.2078]
[1759799919333,0.7581,4685.3,4685.2,4.35279]
[1759799919528,0.7581,4685.3,4685.2,4.56679]
[1759799919723,0.5379,4685.3,4685.2,4.56679]
[1759799920926,0.431,4685.8,4685.7,0.60485]
[1759799921229,0.2108,4685.8,4685.7,4.56675]
[1759799921532,0.71280466,4685.9,4685.8,0.761]
[1759799921732,0.92360466,4685.9,4685.8,0.761]
[1759799921928,0.53966466,4685.9,4685.8,0.761]
[1759799922528,0.71104,4685.8,4685.7,0.81085]
[1759799922837,1.14204,4685.8,4685.7,0.4269]
[1759799923033,1.14204,4685.8,4685.7,0.214]
[1759799923333,1.14204,4685.8,4685.7,0.4269]
[1759799923536,0.7581,4685.8,4685.7,0.975]
[1759799923735,0.7581,4685.8,4685.7,4.1828]
[1759799925030,0.7581,4685.8,4685.7,0.6478]
[1759799925731,0.2108,4685.2,4685.1,3.9688]
[1759799925939,0.7581,4685.2,4685.1,4.5668]
[1759799926734,1.14213,4684.7,4684.6,3.4207]
[1759799926931,1.14213,4684.7,4684.6,3.6347]
[1759799927323,1.14213,4684.7,4684.6,0.214]
[1759799927528,1.63196978,4684.7,4684.6,0.214]
[1759799929335,1.14213,4684.7,4684.6,0.214]
[1759799931441,0.7581,4684.7,4684.6,0.4343]
[1759799932441,0.5379,4684.7,4684.6,0.9644]
[1759799932644,0.127,4685.0,4684.8,0.7504]
[1759799932645,0.3298,4684.9,4684.8,0.7504]
[1759799932837,0.543,4684.9,4684.8,0.7504]
[1759799933333,0.7549,4684.9,4684.8,0.7504]
[1759799933738,0.7549,4684.9,4684.8,0.4402]
[1759799934042,0.7549,4684.9,4684.1,0.82428]
[1759799934043,0.7549,4684.2,4684.1,0.82428]
[1759799934244,0.7549,4684.2,4684.1,1.03828]
[1759799934442,0.7549,4684.2,4684.1,1.34848]
[1759799938448,0.7549,4684.2,4684.1,1.03828]
[1759799938752,0.7549,4684.2,4684.1,1.34848]
[1759799940351,0.7549,4684.2,4684.1,0.4402]
[1759799940551,0.7549,4684.2,4683.5,3.2078]
[1759799940552,0.3298,4683.6,4683.5,3.2078]
[1759799940748,1.27023,4683.5,4683.1,0.214]
[1759799941347,6.27023,4683.5,4683.1,0.214]
[1759799941555,1.27027,4683.0,4682.9,0.01892278]
[1759799942061,6.27027,4683.0,4682.9,0.01892278]
[1759799942353,9.5239689,4683.0,4682.9,0.01892278]
[1759799942657,1.27027,4683.0,4682.9,0.02109274]
[1759799946357,0.8861,4683.0,4682.9,0.46129274]
[1759799946566,0.3298,4683.0,4682.9,0.77149274]
[1759799946858,0.543,4683.0,4682.9,0.77149274]
[1759799947158,0.7549,4683.4,4683.3,0.4402]
[1759799947764,0.7549,4683.4,4683.3,0.7504]
[1759799947964,0.7549,4683.4,4683.3,0.4402]
[1759799948960,0.543,4683.4,4683.3,0.7504]
[1759799949257,0.543,4683.7,4683.6,0.82432]
[1759799949464,0.7549,4683.7,4683.6,0.4402]
[1759799950463,0.7549,4683.7,4683.1,3.2078]
[1759799950464,0.7549,4683.2,4683.1,3.648]
[1759799950768,0.543,4683.2,4683.1,4.34236]
[1759799951162,0.3444,4683.5,4683.4,0.82434]
[1759799951365,0.6742,4683.5,4683.4,1.13454]
[1759799951670,0.3298,4683.9,4683.7,0.38411]
[1759799951871,0.2132,4683.8,4683.7,0.82431]
[1759799952167,0.543,4683.8,4683.7,1.13451]
[1759799952368,3.2078,4684.2,4683.8,0.3841]
[1759799952667,3.2078,4684.2,4683.7,0.5301]
[1759799952668,0.80917,4684.2,4684.1,0.4402]
[1759799952969,1.13897,4684.2,4684.1,0.4402]
[1759799953759,1.13897,4684.2,4684.1,0.7504]
[1759799954271,1.13897,4684.2,4684.1,0.4402]
[1759799955070,1.13897,4684.2,4684.1,0.7504]
[1759799955564,0.7549,4684.2,4684.1,0.7504]
[1759799955769,0.7549,4684.2,4684.1,0.2203]
[1759799955973,0.7549,4683.8,4683.7,3.2078]
[1759799956167,0.7549,4683.8,4683.7,3.4281]
[1759799956373,0.7549,4683.8,4683.7,3.9582]
[1759799956571,0.543,4683.8,4683.7,3.9582]
[1759799958375,0.7379,4683.3,4683.2,0.38415]
[1759799958572,0.7379,4683.3,4683.2,0.4221]
[1759799958876,0.7379,4683.3,4683.2,0.6342]
[1759799959178,0.7379,4683.3,4683.2,0.9623]
[1759799960682,0.7379,4683.3,4683.2,0.214]
[1759799961175,0.7379,4683.3,4683.2,0.6342]
[1759799961376,0.7379,4683.3,4683.2,0.9623]
[1759799961576,0.519,4683.3,4683.2,0.9623]
[1759799961781,0.7379,4683.3,4683.2,0.6342]
[1759799963074,0.7379,4683.3,4683.2,0.214]
[1759799963279,0.7379,4683.3,4683.2,0.2081]
[1759799963584,0.7379,4683.3,4683.2,0.214]
[1759799963782,1.24227,4683.0,4682.9,0.02109274]
[1759799964080,1.24227,4683.0,4682.9,0.23509274]
[1759799964380,6.24227,4683.0,4682.9,0.02109274]
[1759799964576,8.95670495,4683.0,4682.3,0.214]
[1759799964876,0.519,4681.5,4681.4,4.3404]
[1759799965080,0.7379,4681.5,4681.4,4.5544]
[1759799965476,0.519,4681.5,4681.4,4.5544]
[1759799965676,0.52163406,4681.5,4681.4,4.55707393]
[1759799965877,0.00263406,4681.5,4681.4,4.55707393]
[1759799966782,0.30913406,4681.5,4681.4,4.55707393]
[1759799966983,0.00263406,4681.5,4681.4,4.55707393]
[1759799967977,0.21513406,4681.5,4681.4,4.34307393]
[1759799968281,0.86073406,4681.5,4681.4,3.21047393]
[1759799969379,0.86073406,4681.5,4681.4,3.41857393]
[1759799970583,0.86073406,4681.5,4681.4,3.63257393]
[1759799973182,0.86073406,4681.5,4681.4,3.42447393]
[1759799973686,0.86073406,4681.5,4681.4,0.21667393]
[1759799973981,0.86073406,4681.5,4681.4,0.00267393]
[1759799977491,5.86073406,4681.5,4681.4,0.00267393]
[1759799977688,8.67729244,4681.5,4681.4,0.00267393]
[1759799978378,0.38439,4680.3,4679.9,3.59222]
[1759799978686,1.13819,4680.3,4679.9,3.2078]
[1759799978886,0.7538,4680.3,4680.2,0.25722761]
[1759799979583,0.7538,4680.3,4680.2,0.25937566]
[1759799981083,0.546,4680.3,4680.2,0.76077566]
[1759799981490,0.7538,4680.3,4680.2,0.46037566]
[1759799985396,0.7538,4680.3,4680.2,0.04527566]
[1759799991592,3.57103791,4680.3,4680.2,0.04527566]
[1759799991793,0.7204,4679.0,4678.9,3.2078]
[1759799992000,1.2485,4679.0,4678.9,3.2078]
[1759799992393,0.38453,4678.6,4678.5,0.3185]
[1759799992598,0.81153,4678.6,4678.5,0.5338]
[1759799992798,1.12423,4678.6,4678.5,0.53554691]
[1759799993198,1.12423,4678.6,4678.5,0.73754691]
[1759799993199,0.7397,4678.6,4678.5,0.73754691]
[1759799993899,0.7397,4678.6,4678.5,0.41904691]
[1759799994501,0.7397,4678.6,4678.5,0.00174691]
[1759799996404,0.5243,4678.6,4678.5,0.73754691]
[1759799997002,0.7397,4678.6,4678.5,0.73754691]
[1759799997499,0.7397,4678.6,4678.5,0.41904691]
[1759799998397,0.7397,4678.6,4678.5,0.73754691]
[1759799999206,0.7397,4678.6,4678.5,0.95154691]
[1759800001613,0.7397,4678.6,4678.5,0.63304691]
[1759800002005,0.7397,4678.6,4678.5,0.95154691]
[1759800002900,0.5243,4678.6,4678.5,0.95154691]
[1759800003098,0.5243,4678.9,4678.8,0.7358]
[1759800003504,1.12421,4678.9,4678.6,0.38453]
[1759800003700,0.427,4678.6,4678.5,0.60028691]
[1759800003907,0.7397,4678.6,4678.5,1.33608691]
[1759800004500,0.7397,4678.6,4678.5,0.43104691]
[1759800005106,0.7397,4678.6,4678.5,0.00174691]
[1759800006005,1.22795952,4678.6,4678.5,0.00174691]
[1759800007305,4.0407187,4678.6,4678.5,0.00174691]
[1759800007807,4.0407187,4678.6,4677.9,0.23537734]
[1759800007808,1.24858,4678.0,4677.9,0.02137734]
[1759800008007,1.73683952,4678.0,4677.9,0.02137734]
[1759800008315,4.46234359,4678.0,4677.9,0.02137734]
[1759800008707,4.46454774,4678.0,4677.9,0.02356563]
[1759800009808,1.24867,4677.0,4676.9,0.7358]
[1759800010110,0.7397,4677.0,4676.9,0.7358]
[1759800010309,0.7397,4677.0,4676.6,0.215]
[1759800010310,0.3127,4676.9,4676.6,0.215]
[1759800010606,0.5243,4676.7,4676.6,0.9508]
[1759800010808,0.5243,4676.7,4676.6,0.00234429]
[1759800010809,1.12439,4676.7,4676.6,0.00234429]
[1759800011408,0.7397,4676.7,4676.6,0.00234429]
[1759800011808,3.76676408,4676.7,4676.6,0.00234429]
[1759800012010,4.25415219,4676.7,4676.6,0.00234429]
[1759800012705,4.25415219,4676.7,4675.5,0.1228]
[1759800012706,0.2116,4675.3,4675.2,3.4231]
[1759800012916,0.7397,4674.7,4674.6,3.6251]
[1759800013217,0.5243,4674.7,4674.6,3.9436]
[1759800013811,0.52694836,4674.7,4674.6,4.33076844]
[1759800014014,0.52694836,4674.7,4674.6,4.16090844]
[1759800014217,0.74234836,4674.7,4674.6,3.94590844]
[1759800014407,0.74234836,4674.7,4674.6,3.62740844]
[1759800014612,0.74234836,4674.7,4674.6,0.00230844]
[1759800014813,6.75509164,4674.7,4674.6,0.00230844]
[1759800015015,3.95014836,4674.7,4674.6,0.73810844]
[1759800015320,0.00264836,4674.7,4674.6,5.73810844]
[1759800016518,0.00264836,4674.7,4674.6,0.00230844]
[1759800016519,0.74234836,4674.7,4674.6,0.00230844]
[1759800017613,3.55534202,4674.7,4674.6,0.00230844]
[1759800018322,6.34319836,4674.7,4674.6,0.00230844]
[1759800018522,9.18690564,4674.7,4674.6,0.00230844]
[1759800018717,3.80205564,4674.7,4674.6,0.00230844]
[1759800018917,0.00264836,4674.7,4674.6,0.71840844]
[1759800020518,3.3321,4676.0,4674.6,5.71840844]
[1759800020724,0.5419,4676.0,4675.9,0.2083]
[1759800020920,0.8451,4676.0,4675.9,3.9239]
[1759800021518,0.8451,4676.0,4675.9,0.4088]
[1759800021725,0.84744218,4676.0,4675.9,0.2083]
[1759800022218,0.2054,4675.5,4675.4,0.38479]
[1759800022417,0.4176,4674.9,4674.8,3.4161]
[1759800022618,0.5086,4674.9,4674.8,3.9239]
[1759800022814,0.7208,4675.4,4675.3,0.4088]
[1759800023220,0.7208,4675.4,4675.3,0.7161]
[1759800024530,0.00234218,4676.0,4675.9,0.59306]
[1759800024826,0.00234218,4676.0,4675.9,0.7161]
[1759800025228,0.20774218,4676.0,4675.9,0.7161]
[1759800025928,0.00234218,4676.0,4675.9,3.9239]
[1759800026322,0.51094218,4676.0,4675.9,3.9239]
[1759800026517,0.00234218,4676.0,4675.9,3.8326]
[1759800026722,0.00234218,4676.0,4675.9,4.1399]
[1759800029224,0.5086,4676.6,4676.5,0.7161]
[1759800029420,0.2054,4676.6,4676.5,0.7161]
[1759800029626,3.511,4677.0,4676.9,0.4088]
[1759800029822,3.511,4677.0,4676.9,0.7161]
[1759800030124,3.71844461,4677.0,4676.9,0.7161]
[1759800030628,0.8429,4676.5,4676.4,0.4243]
[1759800031019,0.8429,4676.5,4676.4,0.9321]
[1759800031220,0.5086,4676.5,4676.4,1.10409379]
[1759800031424,0.7208,4676.9,4676.8,0.4088]
[1759800031830,3.71661461,4677.0,4676.9,0.3073]
[1759800031831,0.00204461,4677.0,4676.9,0.3073]
[1759800032128,0.51064461,4677.0,4676.9,0.7161]
[1759800032738,0.00204461,4677.0,4676.9,0.7161]
[1759800033634,0.20744461,4677.0,4676.9,0.7161]
[1759800033936,0.5086,4676.6,4676.5,1.1008]
[1759800034234,0.5086,4676.6,4676.5,1.3168]
[1759800035139,0.5086,4676.9,4676.8,0.79348]
[1759800035435,0.5086,4676.9,4676.8,1.10078]
[1759800035631,0.5086,4676.9,4676.8,0.7161]
[1759800037138,3.4182,4677.7,4677.6,0.8622309]
[1759800037435,0.2104,4677.3,4677.2,0.3179]
[1759800037632,0.6973652,4677.3,4677.2,0.3179]
[1759800037834,0.2104,4677.1,4676.6,0.3179]
[1759800038031,0.2130814,4677.1,4676.5,0.1223]
[1759800038232,0.5977414,4677.1,4676.6,0.3179]
[1759800038741,0.2130814,4677.1,4677.0,0.4402]
[1759800039035,0.2130814,4677.1,4677.0,0.6567]
[1759800040336,0.38464,4677.4,4677.1,0.3179]
[1759800040537,0.87165252,4677.3,4677.2,0.3179]
[1759800040735,3.64568242,4677.3,4677.2,0.3179]
[1759800040937,0.87165252,4677.3,4677.2,0.3179]
[1759800041234,8.21183407,4677.3,4676.6,0.3179]
[1759800041438,0.3847,4676.6,4676.5,0.1223]
[1759800041735,2.72230941,4676.6,4675.7,0.2165]
[1759800041942,0.38474,4676.2,4676.1,0.3179]
[1759800042236,3.70230643,4676.2,4676.1,0.5344]
[1759800042444,3.70230643,4676.2,4676.1,0.3179]
[1759800042634,8.70230643,4676.2,4676.0,0.1223]
[1759800042834,0.48689139,4676.1,4676.0,0.1223]
[1759800043035,0.48689139,4676.1,4675.7,0.3179]
[1759800043240,0.38478,4675.6,4675.3,0.3179]
[1759800043437,1.44877139,4676.0,4675.9,0.2165]
[1759800043438,0.38475,4676.0,4675.9,0.2165]
[1759800043638,0.38473,4676.2,4676.1,0.3179]
[1759800043848,0.87157395,4676.2,4676.1,0.3179]
[1759800044038,3.66764098,4676.2,4676.1,0.3179]
[1759800044438,3.28291098,4676.2,4676.1,0.3179]
[1759800045137,0.48684395,4676.2,4676.1,0.7483]
[1759800045338,3.2078,4677.0,4676.9,0.7483]
[1759800046447,0.38716214,4677.3,4677.1,0.3179]
[1759800046644,0.38465,4677.2,4677.1,0.5344]
[1759800047152,0.00251214,4677.3,4677.2,0.3179]
[1759800047448,0.00251214,4677.3,4677.2,0.7483]
[1759800047644,0.216,4677.3,4677.2,0.7483]
[1759800047944,0.38464,4677.4,4677.2,0.4304]
[1759800048142,1.81368264,4677.6,4677.5,0.1223]
[1759800048343,2.02968264,4677.6,4677.5,0.4457]
[1759800048539,4.83449417,4677.6,4677.5,0.4457]
[1759800048751,0.38466,4677.1,4677.0,0.4457]
[1759800049744,0.216,4677.2,4677.0,0.3394]
[1759800050053,0.216,4677.2,4677.1,0.7492]
[1759800051454,0.00161847,4677.6,4677.5,0.8803]